fUSD/lending_fUSD_20240329
["ID","MTS","AMOUNT","RATE_DAILY","PERIOD"]
[321008646,1711743084748,-500.0,0.0005315,120]
[321008647,1711743084891,-212.08185091,0.0005315,120]
[321008648,1711743084900,-500.0,0.0005315,120]
[321008649,1711743084910,-500.0,0.0005315,120]
[321008650,1711743084919,-500.0,0.0005315,120]
[321008651,1711743084928,-500.0,0.0005315,120]
[321008652,1711743084939,-500.0,0.0005315,120]
[321008653,1711743084950,-500.0,0.0005315,120]
[321008654,1711743084960,-500.0,0.0005315,120]
[321008655,1711743084969,-500.0,0.0005315,120]
[321008656,1711743084978,-500.0,0.0005315,120]
[321008657,1711743084988,-500.0,0.0005315,120]
[321008658,1711743084997,-532.21,0.0005315,120]
[321008659,1711743085006,-500.0,0.0005315,120]
[321008660,1711743085016,-234.09,0.0005315,120]
[321008661,1711743085027,-721.19,0.0005315,120]
[321008662,1711743085037,-500.0,0.0005315,120]
[321008663,1711743085046,-500.0,0.0005315,120]
[321008664,1711743085055,-500.0,0.0005315,120]
[321008665,1711743085064,-500.0,0.0005315,120]
[321008666,1711743085073,-500.0,0.0005315,120]
[321008667,1711743085082,-585.96,0.0005315,120]
[321008668,1711743085091,-500.0,0.0005315,120]
[321008669,1711743085100,-500.0,0.0005315,120]
[321008670,1711743085109,-500.0,0.0005315,120]
[321008671,1711743085119,-500.0,0.0005315,120]
[321008672,1711743085128,-500.0,0.0005315,120]
[321008673,1711743085138,-500.0,0.0005315,120]
[321008674,1711743085147,-500.0,0.0005315,120]
[321008675,1711743085157,-500.0,0.0005315,120]
[321008676,1711743085166,-548.85,0.0005315,120]
[321008677,1711743085175,-500.0,0.0005315,120]
[321008678,1711743085185,-500.0,0.0005315,120]
[321008679,1711743085194,-500.0,0.0005315,120]
[321008680,1711743085204,-500.0,0.0005315,120]
[321008681,1711743085213,-500.0,0.0005315,120]
[321008682,1711743085223,-500.0,0.0005315,120]
[321008683,1711743085232,-500.0,0.0005315,120]
[321008684,1711743085242,-334.13,0.0005315,120]
[321008685,1711743085251,-314.90409597,0.0005315,120]
[321008686,1711743085261,-500.0,0.0005315,120]
[321008687,1711743085270,-255.6,0.0005315,120]
[321008688,1711743085279,-500.0,0.0005315,120]
[321008689,1711743085288,-258.70707385,0.0005315,120]
[321008690,1711743085298,-500.0,0.0005315,120]
[321008691,1711743085307,-536.31,0.0005315,120]
[321008692,1711743085317,-657.03,0.0005315,120]
[321008693,1711743085327,-500.0,0.0005315,120]
[321008694,1711743085336,-524.62,0.0005315,120]
[321008695,1711743085345,-550.35709821,0.0005315,120]
[321008696,1711743085355,-500.0,0.0005315,120]
[321008697,1711743085364,-500.0,0.0005315,120]
[321008698,1711743085373,-500.0,0.0005315,120]
[321008699,1711743085383,-621.29,0.0005315,120]
[321008700,1711743085393,-500.0,0.0005315,120]
[321008701,1711743085403,-500.0,0.0005315,120]
[321008702,1711743085412,-619.71,0.0005315,120]
[321008703,1711743085421,-500.0,0.0005315,2]
[321008704,1711743085431,-192.46,0.0005315,120]
[321008705,1711743085440,-487.52,0.0005315,120]
[321008706,1711743085450,-554.4740028,0.0005315,120]
[321008707,1711743085459,-500.0,0.0005315,120]
[321008708,1711743085469,-311.25,0.0005315,120]
[321008709,1711743085478,-500.0,0.0005315,120]
[321008710,1711743085487,-506.13676918,0.0005315,120]
[321008711,1711743085496,-202.66,0.0005315,120]
[321008712,1711743085506,-500.0,0.0005315,120]
[321008713,1711743085516,-500.0,0.0005315,120]
[321008714,1711743085525,-500.0,0.0005315,120]
[321008715,1711743085538,-500.0,0.0005315,120]
[321008716,1711743085552,-500.0,0.0005315,120]
[321008717,1711743085561,-500.0,0.0005315,120]
[321008718,1711743085571,-319.7156748,0.0005315,120]
[321008719,1711743085580,-409.76095068,0.0005315,120]
[321008720,1711743085589,-151.67,0.0005315,120]
[321008721,1711743085598,-500.0,0.0005315,120]
[321008722,1711743085606,-500.0,0.0005315,120]
[321008723,1711743085616,-500.0,0.0005315,120]
[321008724,1711743085625,-500.0,0.0005315,120]
[321008725,1711743085639,-500.0,0.0005315,120]
[321008726,1711743085649,-500.0,0.0005315,120]
[321008727,1711743085658,-500.0,0.0005315,120]
[321008728,1711743085668,-500.0,0.0005315,120]
[321008729,1711743085677,-500.0,0.0005315,120]
[321008730,1711743085686,-500.0,0.0005315,120]
[321008731,1711743085696,-500.0,0.0005315,120]
[321008732,1711743085706,-500.0,0.0005315,120]
[321008733,1711743085714,-500.0,0.0005315,120]
[321008734,1711743085723,-500.0,0.0005315,120]
[321008735,1711743085732,-500.0,0.0005315,120]
[321008736,1711743085742,-500.0,0.0005315,120]
[321008737,1711743085751,-500.0,0.0005315,120]
[321008738,1711743085761,-875.16,0.0005315,120]
[321008739,1711743085770,-500.0,0.0005315,120]
[321008740,1711743085779,-500.0,0.0005315,120]
[321008741,1711743085788,-500.0,0.0005315,120]
[321008742,1711743085797,-500.0,0.0005315,120]
[321008743,1711743085806,-514.32,0.0005315,120]
[321008744,1711743085815,-500.0,0.0005315,120]
[321008745,1711743085824,-500.0,0.0005315,120]
[321008746,1711743085833,-500.0,0.0005315,120]
[321008747,1711743085842,-500.0,0.0005315,120]
[321008748,1711743085851,-500.0,0.0005315,120]
[321008749,1711743085861,-591.94,0.0005315,120]
[321008750,1711743085870,-500.0,0.0005315,120]
[321008751,1711743085879,-500.0,0.0005315,120]
[321008752,1711743085888,-170.02540297,0.0005315,120]
[321008753,1711743085898,-500.0,0.0005315,120]
[321008754,1711743085907,-500.0,0.0005315,120]
[321008755,1711743085916,-612.54,0.0005315,120]
[321008756,1711743085926,-500.0,0.0005315,120]
[321008757,1711743085935,-500.0,0.0005315,120]
[321008758,1711743085947,-373.63582265,0.0005315,120]
[321008759,1711743085956,-500.0,0.0005315,120]
[321008760,1711743085965,-585.45,0.0005315,2]
[321008761,1711743085974,-500.0,0.0005315,120]
[321008762,1711743085984,-2237.67,0.0005315,120]
[321008763,1711743085993,-500.0,0.0005315,120]
[321008764,1711743086003,-500.0,0.0005315,120]
[321008765,1711743086012,-583.33,0.0005315,120]
[321008766,1711743086023,-4471.83,0.0005315,120]
[321008767,1711743086032,-500.0,0.0005315,120]
[321008768,1711743086042,-1416.86,0.0005315,120]
[321008769,1711743086052,-500.0,0.0005315,120]
[321008770,1711743086061,-500.0,0.0005315,120]
[321008771,1711743086070,-500.0,0.0005315,120]
[321008772,1711743086080,-500.0,0.0005315,120]
[321008773,1711743086089,-557.16,0.0005315,120]
[321008774,1711743086099,-500.0,0.0005315,120]
[321008775,1711743086108,-762.04,0.0005315,120]
[321008776,1711743086118,-500.0,0.0005315,120]
[321008777,1711743086127,-2221.11,0.0005315,120]
[321008778,1711743086136,-541.23057722,0.0005315,120]
[321008779,1711743086146,-3766.78,0.0005315,120]
[321008780,1711743086156,-500.0,0.0005315,120]
[321008781,1711743086165,-511.43,0.0005315,120]
[321008782,1711743086174,-2235.61,0.0005315,120]
[321008783,1711743086184,-780.71,0.0005315,120]
[321008784,1711743086193,-1178.74,0.0005315,120]
[321008785,1711743086204,-500.0,0.0005315,120]
[321008786,1711743086213,-556.61,0.0005315,120]
[321008787,1711743086222,-500.0,0.0005315,120]
[321008788,1711743086231,-501.51857972,0.0005315,120]
[321008789,1711743086241,-500.0,0.0005315,120]
[321008790,1711743086251,-500.0,0.0005315,120]
[321008791,1711743086262,-500.0,0.0005315,120]
[321008792,1711743086272,-619.5,0.0005315,120]
[321008793,1711743086283,-500.0,0.0005315,120]
[321008794,1711743086294,-629.04,0.0005315,120]
[321008795,1711743086304,-2852.03,0.0005315,120]
[321008796,1711743086314,-3138.6,0.0005315,120]
[321008797,1711743086323,-8058.65,0.0005315,120]
[321008798,1711743086333,-214.94309744,0.0005315,120]
[321008799,1711743086343,-500.0,0.0005315,120]
[321008800,1711743086354,-500.0,0.0005315,120]
[321008801,1711743086364,-646.56,0.0005315,120]
[321008802,1711743086374,-630.23,0.0005315,120]
[321008803,1711743086383,-2086.46,0.0005315,120]
[321008804,1711743086393,-756.48,0.0005315,120]
[321008805,1711743086404,-500.0,0.0005315,120]
[321008806,1711743086414,-500.0,0.0005315,120]
[321008807,1711743086424,-1381.85,0.0005315,120]
[321008808,1711743086434,-1786.25,0.0005315,120]
[321008809,1711743086444,-558.79338848,0.0005315,120]
[321008810,1711743086459,-1037.49,0.0005315,120]
[321008811,1711743086468,-5491.84,0.0005315,120]
[321008812,1711743086479,-500.0,0.0005315,120]
[321008813,1711743086488,-500.0,0.0005315,120]
[321008814,1711743086498,-4044.9,0.0005315,120]
[321008815,1711743086508,-500.0,0.0005315,120]
[321008816,1711743086517,-500.0,0.0005315,120]
[321008817,1711743086527,-963.3,0.0005315,120]
[321008818,1711743086537,-500.0,0.0005315,120]
[321008819,1711743086547,-2228.41,0.0005315,120]
[321008820,1711743086556,-1266.86,0.0005315,120]
[321008821,1711743086565,-2742.97,0.0005315,120]
[321008822,1711743086574,-500.0,0.0005315,120]
[321008823,1711743086584,-1695.14,0.0005315,120]
[321008824,1711743086593,-1156.36,0.0005315,120]
[321008825,1711743086602,-500.0,0.0005315,120]
[321008826,1711743086611,-3243.98,0.0005315,120]
[321008827,1711743086620,-500.0,0.0005315,120]
[321008828,1711743086629,-500.0,0.0005315,120]
[321008829,1711743086638,-500.0,0.0005315,120]
[321008830,1711743086647,-3781.4,0.0005315,120]
[321008831,1711743086656,-253.62842096,0.0005315,120]
[321008832,1711743086665,-1170.04,0.0005315,120]
[321008833,1711743086674,-996.14,0.0005315,120]
[321008834,1711743086683,-659.08,0.0005315,120]
[321008835,1711743086692,-500.0,0.0005315,120]
[321008836,1711743086704,-500.0,0.0005315,120]
[321008837,1711743086713,-609.3,0.0005315,120]
[321008838,1711743086722,-500.0,0.0005315,7]
[321008839,1711743086731,-4977.0,0.0005315,120]
[321008840,1711743086740,-500.0,0.0005315,120]
[321008841,1711743086749,-500.0,0.0005315,120]
[321008842,1711743086761,-500.0,0.0005315,120]
[321008843,1711743086770,-500.0,0.0005315,120]
[321008844,1711743086779,-3890.35,0.0005315,120]
[321008845,1711743086789,-500.0,0.0005315,120]
[321008846,1711743086799,-784.3,0.0005315,120]
[321008847,1711743086808,-657.95,0.0005315,120]
[321008848,1711743086817,-500.0,0.0005315,120]
[321008849,1711743086827,-3045.62,0.0005315,120]
[321008850,1711743086835,-500.0,0.0005315,120]
[321008851,1711743086845,-500.0,0.0005315,120]
[321008852,1711743086854,-500.0,0.0005315,120]
[321008853,1711743086863,-500.0,0.0005315,120]
[321008854,1711743086872,-500.0,0.0005315,120]
[321008855,1711743086881,-500.0,0.0005315,120]
[321008856,1711743086890,-762.49,0.0005315,120]
[321008857,1711743086899,-713.8,0.0005315,120]
[321008858,1711743086908,-876.73,0.0005315,120]
[321008859,1711743086917,-500.0,0.0005315,120]
[321008860,1711743086927,-500.0,0.0005315,120]
[321008861,1711743086942,-500.0,0.0005315,120]
[321008862,1711743086953,-500.0,0.0005315,120]
[321008863,1711743086963,-3322.87,0.0005315,120]
[321008864,1711743086972,-975.43,0.0005315,120]
[321008865,1711743086981,-500.0,0.0005315,120]
[321008866,1711743086990,-500.0,0.0005315,120]
[321008867,1711743086999,-1010.8,0.0005315,120]
[321008868,1711743087008,-500.0,0.0005315,120]
[321008869,1711743087153,-1101.95,0.0005315,120]
[321008870,1711743087163,-641.9,0.0005315,120]
[321008871,1711743087172,-500.0,0.0005315,120]
[321008872,1711743087182,-500.0,0.0005315,120]
[321008873,1711743087191,-5674.68,0.0005315,120]
[321008874,1711743087202,-500.0,0.0005315,120]
[321008875,1711743087211,-500.0,0.0005315,120]
[321008876,1711743087220,-553.54067865,0.0005315,120]
[321008877,1711743087230,-500.0,0.0005315,120]
[321008878,1711743087239,-500.0,0.0005315,120]
[321008879,1711743087248,-1101.21,0.0005315,120]
[321008880,1711743087258,-1619.59,0.0005315,120]
[321008881,1711743087267,-500.0,0.0005315,120]
[321008882,1711743087277,-958.84,0.0005315,120]
[321008883,1711743087286,-608.38,0.0005315,120]
[321008884,1711743087296,-500.0,0.0005315,120]
[321008885,1711743087305,-1270.9,0.0005315,120]
[321008886,1711743087314,-500.0,0.0005315,120]
[321008887,1711743087323,-1001.79,0.0005315,120]
[321008888,1711743087333,-500.0,0.0005315,120]
[321008889,1711743087342,-704.57,0.0005315,120]
[321008890,1711743087351,-1109.94,0.0005315,120]
[321008891,1711743087361,-500.0,0.0005315,120]
[321008892,1711743087370,-500.0,0.0005315,120]
[321008893,1711743087380,-966.68,0.0005315,120]
[321008894,1711743087389,-500.0,0.0005315,120]
[321008895,1711743087399,-500.0,0.0005315,120]
[321008896,1711743087410,-763.79,0.0005315,120]
[321008897,1711743087420,-896.89,0.0005315,120]
[321008898,1711743087431,-863.63,0.0005315,120]
[321008899,1711743087442,-500.0,0.0005315,120]
[321008900,1711743087455,-1827.42,0.0005315,120]
[321008901,1711743087466,-1672.3,0.0005315,120]
[321008902,1711743087476,-500.0,0.0005315,120]
[321008903,1711743087486,-500.0,0.0005315,120]
[321008904,1711743087495,-3729.29,0.0005315,120]
[321008905,1711743087505,-3188.94,0.0005315,120]
[321008906,1711743087514,-500.0,0.0005315,120]
[321008907,1711743087523,-1494.43,0.0005315,120]
[321008908,1711743087533,-740.79,0.0005315,120]
[321008909,1711743087542,-500.0,0.0005315,120]
[321008910,1711743087551,-500.0,0.0005315,120]
[321008911,1711743087561,-2612.0,0.0005315,120]
[321008912,1711743087570,-7249.51,0.0005315,120]
[321008913,1711743087580,-500.0,0.0005315,120]
[321008914,1711743087590,-500.0,0.0005315,120]
[321008915,1711743087600,-843.2,0.0005315,120]
[321008916,1711743087609,-2680.51,0.0005315,120]
[321008917,1711743087618,-500.0,0.0005315,120]
[321008918,1711743087628,-183.72879973,0.0005315,120]
[321008919,1711743087637,-4459.43,0.0005315,120]
[321008920,1711743087646,-500.0,0.0005315,120]
[321008921,1711743087655,-1947.08,0.0005315,120]
[321008922,1711743087665,-3624.86,0.0005315,120]
[321008923,1711743087675,-2027.87,0.0005315,120]
[321008924,1711743087684,-1617.65,0.0005315,120]
[321008925,1711743087694,-500.0,0.0005315,120]
[321008926,1711743087705,-1765.5,0.0005315,120]
[321008927,1711743087715,-1764.1,0.0005315,120]
[321008928,1711743087724,-500.0,0.0005315,120]
[321008929,1711743087734,-500.0,0.0005315,120]
[321008930,1711743087744,-957.9,0.0005315,120]
[321008931,1711743087754,-10351.89,0.0005315,120]
[321008932,1711743087763,-13296.96,0.0005315,120]
[321008933,1711743087774,-517.98,0.0005315,120]
[321008934,1711743087783,-1873.21,0.0005315,120]
[321008935,1711743087793,-504.78,0.0005315,120]
[321008936,1711743087803,-2418.2,0.0005315,120]
[321008937,1711743087812,-2461.01,0.0005315,120]
[321008938,1711743087822,-500.0,0.0005315,120]
[321008939,1711743087831,-2944.8,0.0005315,120]
[321008940,1711743087841,-500.0,0.0005315,120]
[321008941,1711743087851,-1607.86,0.0005315,120]
[321008942,1711743087860,-500.0,0.0005315,120]
[321008943,1711743087870,-500.0,0.0005315,120]
[321008944,1711743087879,-500.0,0.0005315,120]
[321008945,1711743087889,-3103.51,0.0005315,120]
[321008946,1711743087898,-500.0,0.0005315,80]
[321008947,1711743087907,-500.0,0.0005315,120]
[321008948,1711743087916,-500.0,0.0005315,120]
[321008949,1711743087926,-2940.12,0.0005315,120]
[321008950,1711743087935,-500.0,0.0005315,120]
[321008951,1711743087952,-4477.27,0.0005315,120]
[321008952,1711743087961,-500.0,0.0005315,120]
[321008953,1711743087970,-500.0,0.0005315,120]
[321008954,1711743087980,-1003.91,0.0005315,120]
[321008955,1711743087990,-782.17,0.0005315,120]
[321008956,1711743088000,-910.45,0.0005315,120]
[321008957,1711743088009,-2328.02,0.0005315,120]
[321008958,1711743088019,-500.0,0.0005315,120]
[321008959,1711743088028,-1584.87,0.0005315,120]
[321008960,1711743088038,-500.0,0.0005315,120]
[321008961,1711743088048,-608.2,0.0005315,120]
[321008962,1711743088057,-500.0,0.0005315,120]
[321008963,1711743088067,-594.05,0.0005315,120]
[321008964,1711743088076,-995.82,0.0005315,120]
[321008965,1711743088086,-500.0,0.0005315,120]
[321008966,1711743088095,-611.38,0.0005315,120]
[321008967,1711743088105,-500.0,0.0005315,120]
[321008968,1711743088114,-571.66,0.0005315,120]
[321008969,1711743088123,-1818.27,0.0005315,120]
[321008970,1711743088133,-4183.91,0.0005315,120]
[321008971,1711743088142,-500.0,0.0005315,120]
[321008972,1711743088151,-500.0,0.0005315,120]
[321008973,1711743088160,-4365.84,0.0005315,21]
[321008974,1711743088170,-500.0,0.0005315,120]
[321008975,1711743088179,-500.0,0.0005315,120]
[321008976,1711743088188,-500.0,0.0005315,120]
[321008977,1711743088198,-406.40675292,0.0005315,120]
[321008978,1711743088209,-1348.38,0.0005315,120]
[321008979,1711743088218,-854.64,0.0005315,120]
[321008980,1711743088228,-1373.05,0.0005315,120]
[321008981,1711743088238,-1920.43,0.0005315,120]
[321008982,1711743088248,-548.39,0.0005315,120]
[321008983,1711743088258,-4841.11,0.0005315,120]
[321008984,1711743088268,-500.0,0.0005315,120]
[321008985,1711743088279,-500.0,0.0005315,120]
[321008986,1711743088289,-1532.21,0.0005315,120]
[321008987,1711743088299,-3978.71,0.0005315,120]
[321008988,1711743088309,-4048.81,0.0005315,120]
[321008989,1711743088319,-500.0,0.0005315,120]
[321008990,1711743088329,-500.0,0.0005315,60]
[321008991,1711743088338,-500.0,0.0005315,120]
[321008992,1711743088348,-500.0,0.0005315,120]
[321008993,1711743088358,-623.73,0.0005315,120]
[321008994,1711743088368,-10194.33,0.0005315,120]
[321008995,1711743088378,-817.33,0.0005315,120]
[321008996,1711743088389,-500.0,0.0005315,120]
[321008997,1711743088399,-3430.93,0.0005315,120]
[321008998,1711743088409,-500.0,0.0005315,120]
[321008999,1711743088419,-500.0,0.0005315,120]
[321009000,1711743088429,-500.0,0.0005315,2]
[321009001,1711743088439,-1097.14,0.0005315,120]
[321009002,1711743088449,-500.0,0.0005315,120]
[321009003,1711743088459,-393.07221529,0.0005315,120]
[321009004,1711743088469,-209.277,0.00053163,30]
[321009005,1711743088478,-624.607561,0.00053163,30]
[321009006,1711743088488,-230.2047,0.00053163,30]
[321009007,1711743088498,-1000.0,0.00053183,120]
[321009008,1711743088508,-208.71666538,0.000532,120]
[321009009,1711743088518,-150.0,0.000532,11]
[321009010,1711743088527,-274.61796189,0.00053262,120]
[321009011,1711743088538,-1000.0,0.00053263,120]
[321009012,1711743088548,-150.0,0.00053276,14]
[321009013,1711743088558,-150.0,0.00053276,14]
[321009014,1711743088568,-150.0,0.00053276,14]
[321009015,1711743088577,-150.0,0.00053276,14]
[321009016,1711743088587,-150.0,0.00053276,14]
[321009017,1711743088597,-150.0,0.00053276,14]
[321009018,1711743088607,-440.95056199,0.0005331,2]
[321009019,1711743088616,-150.0,0.00053337,60]
[321009020,1711743088625,-500.60232033,0.00053337,60]
[321009021,1711743088635,-1000.0,0.00053344,120]
[321009022,1711743088644,-500.0,0.00053424,120]
[321009023,1711743088653,-500.0,0.00053424,120]
[321009024,1711743088662,-500.0,0.00053424,120]
[321009025,1711743088672,-500.0,0.00053424,120]
[321009026,1711743088681,-327.91471008,0.00053424,120]
[321009027,1711743088690,-500.0,0.00053424,120]
[321009028,1711743088701,-500.0,0.00053424,120]
[321009029,1711743088711,-500.0,0.00053424,120]
[321009030,1711743088720,-500.0,0.00053424,120]
[321009031,1711743088729,-500.0,0.00053424,120]
[321009032,1711743088738,-500.0,0.00053424,120]
[321009033,1711743088747,-539.51957849,0.00053424,15]
[321009034,1711743088757,-500.0,0.00053424,120]
[321009035,1711743088766,-500.0,0.00053424,120]
[321009036,1711743088777,-500.0,0.00053424,120]
[321009037,1711743088787,-447.13185162,0.00053424,120]
[321009038,1711743088797,-500.0,0.00053424,120]
[321009039,1711743088806,-500.0,0.00053424,120]
[321009040,1711743088816,-500.0,0.00053424,120]
[321009041,1711743088825,-500.0,0.00053424,120]
[321009042,1711743088834,-500.0,0.00053424,120]
[321009043,1711743088843,-500.0,0.00053424,120]
[321009044,1711743088852,-635.07,0.00053424,120]
[321009045,1711743088862,-500.0,0.00053424,120]
[321009046,1711743088871,-500.0,0.00053424,120]
[321009047,1711743088880,-198.2961615,0.00053424,120]
[321009048,1711743088889,-500.0,0.00053424,120]
[321009049,1711743088898,-500.0,0.00053424,120]
[321009050,1711743088907,-500.0,0.00053424,120]
[321009051,1711743088916,-500.0,0.00053424,120]
[321009052,1711743088926,-500.0,0.00053424,120]
[321009053,1711743088935,-500.0,0.00053424,120]
[321009054,1711743088948,-346.79404154,0.00053424,120]
[321009055,1711743088959,-500.0,0.00053424,120]
[321009056,1711743088968,-500.0,0.00053424,120]
[321009057,1711743088977,-500.0,0.00053424,120]
[321009058,1711743088987,-500.0,0.00053424,120]
[321009059,1711743088996,-500.0,0.00053424,120]
[321009060,1711743089006,-500.0,0.00053424,120]
[321009061,1711743089015,-277.28491048,0.00053424,120]
[321009062,1711743089028,-500.0,0.00053424,120]
[321009063,1711743089037,-500.0,0.00053424,120]
[321009064,1711743089046,-500.0,0.00053424,120]
[321009065,1711743089056,-196.44,0.00053424,120]
[321009066,1711743089065,-500.0,0.00053424,120]
[321009067,1711743089075,-500.0,0.00053424,120]
[321009068,1711743089084,-500.0,0.00053424,120]
[321009069,1711743089094,-500.0,0.00053424,120]
[321009070,1711743089104,-500.0,0.00053424,120]
[321009071,1711743089113,-500.0,0.00053424,120]
[321009072,1711743089123,-500.0,0.00053424,120]
[321009073,1711743089132,-607.85,0.00053424,120]
[321009074,1711743089263,-500.0,0.00053424,120]
[321009075,1711743089273,-500.0,0.00053424,120]
[321009076,1711743089283,-500.0,0.00053424,120]
[321009077,1711743089293,-500.0,0.00053424,120]
[321009078,1711743089302,-500.0,0.00053424,120]
[321009079,1711743089312,-347.38,0.00053424,120]
[321009080,1711743089321,-500.0,0.00053424,120]
[321009081,1711743089331,-631.54,0.00053424,120]
[321009082,1711743089340,-500.0,0.00053424,120]
[321009083,1711743089350,-500.0,0.00053424,120]
[321009084,1711743089359,-500.0,0.00053424,120]
[321009085,1711743089368,-500.0,0.00053424,120]
[321009086,1711743089378,-556.71591593,0.00053424,120]
[321009087,1711743089388,-1037.80820722,0.00053424,120]
[321009088,1711743089397,-500.0,0.00053424,120]
[321009089,1711743089407,-356.8,0.00053424,120]
[321009090,1711743089417,-500.0,0.00053424,120]
[321009091,1711743089426,-500.0,0.00053424,120]
[321009092,1711743089435,-500.0,0.00053424,120]
[321009093,1711743089444,-500.0,0.00053424,120]
[321009094,1711743089455,-500.0,0.00053424,120]
[321009095,1711743089464,-332.28,0.00053424,120]
[321009096,1711743089473,-500.0,0.00053424,120]
[321009097,1711743089483,-500.0,0.00053424,120]
[321009098,1711743089492,-500.0,0.00053424,120]
[321009099,1711743089502,-500.0,0.00053424,120]
[321009100,1711743089512,-500.0,0.00053424,120]
[321009101,1711743089521,-500.0,0.00053424,120]
[321009102,1711743089531,-500.0,0.00053424,120]
[321009103,1711743089540,-500.0,0.00053424,120]
[321009104,1711743089549,-500.0,0.00053424,120]
[321009105,1711743089559,-559.31,0.00053424,120]
[321009106,1711743089568,-176.05135745,0.00053424,120]
[321009107,1711743089577,-500.0,0.00053424,120]
[321009108,1711743089587,-500.0,0.00053424,120]
[321009109,1711743089596,-500.0,0.00053424,120]
[321009110,1711743089605,-500.0,0.00053424,120]
[321009111,1711743089614,-500.0,0.00053424,120]
[321009112,1711743089623,-500.0,0.00053424,120]
[321009113,1711743089633,-500.0,0.00053424,120]
[321009114,1711743089642,-500.0,0.00053424,120]
[321009115,1711743089651,-500.0,0.00053424,120]
[321009116,1711743089663,-500.0,0.00053424,120]
[321009117,1711743089673,-500.0,0.00053424,120]
[321009118,1711743089682,-500.0,0.00053424,120]
[321009119,1711743089691,-500.0,0.00053424,120]
[321009120,1711743089701,-500.0,0.00053424,120]
[321009121,1711743089710,-500.0,0.00053424,120]
[321009122,1711743089719,-500.0,0.00053424,120]
[321009123,1711743089728,-500.0,0.00053424,120]
[321009124,1711743089738,-500.0,0.00053424,120]
[321009125,1711743089747,-500.0,0.00053424,120]
[321009126,1711743089757,-621.16169885,0.00053424,120]
[321009127,1711743089766,-500.0,0.00053424,120]
[321009128,1711743089774,-500.0,0.00053424,120]
[321009129,1711743089783,-500.0,0.00053424,120]
[321009130,1711743089793,-500.0,0.00053424,120]
[321009131,1711743089802,-627.1,0.00053424,120]
[321009132,1711743089811,-500.0,0.00053424,120]
[321009133,1711743089821,-500.0,0.00053424,120]
[321009134,1711743089829,-500.0,0.00053424,120]
[321009135,1711743089839,-500.0,0.00053424,120]
[321009136,1711743089848,-500.0,0.00053424,120]
[321009137,1711743089857,-500.0,0.00053424,120]
[321009138,1711743089866,-500.0,0.00053424,120]
[321009139,1711743089875,-500.0,0.00053424,120]
[321009140,1711743089885,-500.0,0.00053424,120]
[321009141,1711743089894,-500.0,0.00053424,120]
[321009142,1711743089903,-500.0,0.00053424,120]
[321009143,1711743089911,-500.0,0.00053424,120]
[321009144,1711743089920,-500.0,0.00053424,120]
[321009145,1711743089929,-500.0,0.00053424,120]